[Event "44th Chess Olympiad Open 2022"]
[Site "Chennai"]
[Date "2022.08.09"]
[Round "11.69"]
[White "Eichab, Charles"]
[Black "Njau, Albert"]
[Result "1/2-1/2"]
[ECO "A28"]
[WhiteElo "2048"]
[BlackElo "1842"]
[Annotator "NA RC"]
[PlyCount "172"]
[EventDate "2022.07.29"]
[EventType "team-tourn"]
[EventCountry "IND"]
[SourceTitle "playchess.com"]
[Source "ChessBase"]
[SourceQuality "1"]
[WhiteTeam "Namibia"]
[BlackTeam "Tanzania"]
[WhiteTeamCountry "NAM"]
[BlackTeamCountry "TAN"]
[TimeControl "40/5400+30:1800+30"]

1. c4 {[%emt 0:00:29]} e5 {[%emt 0:00:16]} 2. Nc3 {[%emt 0:00:14]} Nf6 {[%emt 0:00:15]} 3. Nf3 {[%emt 0:00:25]} Nc6 {[%emt 0:00:18]} 4. e3 {[%emt 0:00:07]} Bb4 {[%emt 0:01:27]} 5. Qc2 {[%emt 0:02:49]} O-O {[%emt 0:01:22]} 6. a3 {[%emt 0:00:45]} Bxc3 {[%emt 0:03:08]} 7. Qxc3 {[%emt 0:00:06]} Re8 {[%emt 0:00:12]} 8. d4 {[%emt 0:08:39]} exd4 {[%emt 0:01:45]} 9. Nxd4 {[%emt 0:00:45]} Nxd4 {[%emt 0:02:15]} 10. Qxd4 {[%emt 0:00:11]} d5 {[%emt 0:00:17]} 11. cxd5 {[%emt 0:06:00]} Qxd5 {[%emt 0:00:57]} 12. Qxd5 {[%emt 0:00:28]} Nxd5 {[%emt 0:00:10]} 13. Be2 {[%emt 0:01:07]} Bf5 {[%emt 0:03:29]} 14. O-O {[%emt 0:03:58]} Rad8 {[%emt 0:01:47]} 15. Rd1 {[%emt 0:12:54]} Nf4 {[%emt 0:14:54]} 16. Rxd8 {[%emt 0:01:16]} Nxe2+ {[%emt 0:00:11]} 17. Kf1 {[%emt 0:00:04]} Ng3+ {[%emt 0:00:19]} 18. hxg3 {[%emt 0:00:22]} Rxd8 {[%emt 0:00:10]} 19. Ke1 {[%emt 0:00:39]} Kf8 {[%emt 0:05:58]} 20. Bd2 {[%emt 0:04:39]} Ke7 {[%emt 0:00:49]} 21. Rc1 {[%emt 0:00:34]} c6 {[%emt 0:03:15]} 22. Bb4+ {[%emt 0:04:50]} Kd7 {[%emt 0:02:25]} 23. f3 {[%emt 0:06:07]} Bd3 {[%emt 0:02:46]} 24. Rd1 {[%emt 0:01:36]} Kc7 {[%emt 0:00:53]} 25. Bc3 {[%emt 0:00:29]} f6 {[%emt 0:00:31]} 26. e4 {[%emt 0:02:27]} c5 {[%emt 0:03:39]} 27. e5 {[%emt 0:13:55]} f5 {[%emt 0:05:01]} 28. Kf2 {[%emt 0:01:32]} g6 {[%emt 0:16:30]} 29. Ke3 {[%emt 0:02:26]} Bc4 {[%emt 0:01:06]} 30. Rh1 {[%emt 0:04:22]} h5 {[%emt 0:01:25]} 31. Kf4 {[%emt 0:00:40]} Re8 {[%emt 0:03:03]} 32. Kg5 {[%emt 0:01:56]} Re6 {[%emt 0:00:58]} 33. Rd1 {[%emt 0:01:49]} b6 {[%emt 0:03:10]} 34. f4 {[%emt 0:03:18]} Be2 {[%emt 0:02:35]} 35. Rd2 {[%emt 0:00:29]} Bf1 {[%emt 0:03:41]} 36. b3 {[%emt 0:06:03]} Bb5 {[%emt 0:06:21]} 37. Kh6 {[%emt 0:04:19]} a6 {[%emt 0:03:34]} 38. Kg7 {[%emt 0:00:25]} Be8 {[%emt 0:02:19]} 39. Kf8 {[%emt 0:00:43]} Bd7 {[%emt 0:04:18]} 40. Kf7 {[%emt 0:03:22]} Rc6 {[%emt 0:00:21]} 41. b4 {[%emt 0:32:43]} Re6 {[%emt 0:32:38]} 42. bxc5 {[%emt 0:00:43]} bxc5 {[%emt 0:00:00]} 43. Ba5+ {[%emt 0:00:00]} Kc8 {[%emt 0:00:00]} 44. Rb2 {[%emt 0:00:00]} c4 {[%emt 0:00:00]} 45. Rb6 {[%emt 0:00:00]} Rxb6 {[%emt 0:00:00]} 46. Bxb6 {[%emt 0:00:00]} Bc6 {[%emt 0:00:00]} 47. Kxg6 {[%emt 0:00:00]} Be4 {[%emt 0:00:00]} 48. Ba5 {[%emt 0:00:00]} Kd7 {[%emt 0:00:00]} 49. Kf6 {[%emt 0:00:00]} Ke8 {[%emt 0:00:00]} 50. Bb4 {[%emt 0:00:00]} Bd3 {[%emt 0:00:00]} 51. Kg5 {[%emt 0:00:00]} c3 {[%emt 0:00:00]} 52. Bxc3 {[%emt 0:00:00]} Ke7 {[%emt 0:00:00]} 53. Kxh5 {[%emt 0:00:00]} Be2+ {[%emt 0:00:00]} 54. Kg5 {[%emt 0:00:00]} Bg4 {[%emt 0:00:00]} 55. Kg6 {[%emt 0:00:00]} Ke6 {[%emt 0:00:00]} 56. Kg7 {[%emt 0:00:00]} Be2 {[%emt 0:00:00]} 57. Kf8 {[%emt 0:00:00]} Bf1 {[%emt 0:00:00]} 58. g4 {[%emt 0:00:00]} fxg4 {[%emt 0:00:00]} 59. g3 {[%emt 0:00:00]} Bd3 {[%emt 0:00:00]} 60. Kg7 {[%emt 0:00:01]} Be4 {[%emt 0:00:00]} 61. Kh6 {[%emt 0:02:46]} Kf5 {[%emt 0:00:00]} 62. Kg7 {[%emt 0:01:58]} Ke6 {[%emt 0:00:00]} 63. a4 {[%emt 0:00:46]} Bc2 {[%emt 0:00:00]} 64. Ba1 {[%emt 0:00:43]} Be4 {[%emt 0:00:00]} 65. Kf8 {[%emt 0:00:28]} Bd3 {[%emt 0:00:00]} 66. Ke8 {[%emt 0:00:07]} Bc2 {[%emt 0:00:00]} 67. Kd8 {[%emt 0:00:15]} Bxa4 {[%emt 0:00:00]} 68. Kc7 {[%emt 0:00:26]} Bb3 {[%emt 0:00:00]} 69. Kb6 {[%emt 0:00:28]} Bc4 {[%emt 0:00:00]} 70. Bc3 {[%emt 0:00:23]} Bd3 {[%emt 0:00:00]} 71. Bd2 {[%emt 0:00:47]} Bb5 {[%emt 0:00:00]} 72. Kc5 {[%emt 0:00:11]} Bd3 {[%emt 0:00:00]} 73. Bc3 {[%emt 0:01:01]} Bf5 {[%emt 0:00:00]} 74. Kb6 {[%emt 0:00:57]} Bd3 {[%emt 0:00:00]} 75. Kc7 {[%emt 0:00:06]} Bf5 {[%emt 0:00:00]} 76. Kd8 {[%emt 0:00:20]} Bd3 {[%emt 0:00:00]} 77. Ke8 {[%emt 0:00:07]} Be4 {[%emt 0:00:00]} 78. Kf8 {[%emt 0:00:11]} Bd3 {[%emt 0:00:00]} 79. Kg7 {[%emt 0:00:12]} Be4 {[%emt 0:00:00]} 80. Be1 {[%emt 0:00:20]} Bd3 {[%emt 0:00:00]} 81. Bb4 {[%emt 0:00:16]} Be4 {[%emt 0:20:32]} 82. Kh6 {[%emt 0:00:00]} Kf5 {[%emt 0:00:00]} 83. Bc3 {[%emt 0:00:00]} Bd5 {[%emt 0:00:00]} 84. Kg7 {[%emt 0:00:00]} Bc4 {[%emt 0:00:00]} 85. Kh6 {[%emt 0:00:31]} Ba2 {[%emt 0:00:00]} 86. Kh5 {[%emt 0:00:25]} Bc4 {[%emt 0:00:00]} 1/2-1/2

[Event "44th Chess Olympiad Open 2022"]
[Site "Chennai"]
[Date "2022.08.09"]
[Round "11.69"]
[White "Ndahangwapo, Heskiel"]
[Black "Veer Gandhi"]
[Result "1-0"]
[ECO "E09"]
[WhiteElo "1904"]
[BlackElo "1545"]
[Annotator "NA RC"]
[PlyCount "105"]
[EventDate "2022.07.29"]
[EventType "team-tourn"]
[EventCountry "IND"]
[SourceTitle "playchess.com"]
[Source "ChessBase"]
[SourceQuality "1"]
[WhiteTeam "Namibia"]
[BlackTeam "Tanzania"]
[WhiteTeamCountry "NAM"]
[BlackTeamCountry "TAN"]
[TimeControl "40/5400+30:1800+30"]

1. d4 {[%emt 0:00:55]} d5 {[%emt 0:00:08]} 2. Nf3 {[%emt 0:00:06]} Nf6 {[%emt 0:00:20]} 3. g3 {[%emt 0:00:11]} e6 {[%emt 0:05:52]} 4. c4 {[%emt 0:00:05]} Be7 {[%emt 0:00:07]} 5. Bg2 {[%emt 0:00:05]} O-O {[%emt 0:01:41]} 6. O-O {[%emt 0:00:05]} c6 {[%emt 0:07:04]} 7. Nbd2 {[%emt 0:00:07]} Nbd7 {[%emt 0:01:38]} 8. Qc2 {[%emt 0:00:09]} Qc7 {[%emt 0:03:26]} 9. e4 {[%emt 0:00:08]} dxe4 {[%emt 0:00:49]} 10. Nxe4 {[%emt 0:00:07]} Nxe4 {[%emt 0:01:36]} 11. Qxe4 {[%emt 0:00:05]} Nf6 {[%emt 0:00:52]} 12. Qc2 {[%emt 0:00:31]} b6 {[%emt 0:22:33]} 13. Bf4 {[%emt 0:06:04]} Bd6 {[%emt 0:00:06]} 14. Bxd6 {[%emt 0:00:10]} Qxd6 {[%emt 0:00:20]} 15. c5 {[%emt 0:00:16]} Qc7 {[%emt 0:10:22]} 16. Rfd1 {[%emt 0:02:54]} b5 {[%emt 0:07:40]} 17. a4 {[%emt 0:12:46]} Bb7 {[%emt 0:12:35]} 18. a5 {[%emt 0:00:00]} a6 {[%emt 0:01:06]} 19. b4 {[%emt 0:00:00]} Bc8 {[%emt 0:02:21]} 20. Re1 {[%emt 0:00:00]} Bd7 {[%emt 0:02:45]} 21. Ne5 {[%emt 0:00:00]} Rfd8 {[%emt 0:00:36]} 22. g4 {[%emt 0:00:00]} h6 {[%emt 0:08:26]} 23. h4 {[%emt 0:00:00]} Be8 {[%emt 0:00:00]} 24. g5 {[%emt 0:00:00]} hxg5 {[%emt 0:00:00]} 25. hxg5 {[%emt 0:00:00]} Nd5 {[%emt 0:03:45]} 26. Re4 {[%emt 0:05:00]} Ne7 {[%emt 0:04:31]} 27. Ra3 {[%emt 0:01:50]} Ng6 {[%emt 0:01:31]} 28. Nxg6 {[%emt 0:00:47]} fxg6 {[%emt 0:00:06]} 29. Rxe6 {[%emt 0:00:20]} Rxd4 {[%emt 0:00:28]} 30. Rae3 {[%emt 0:00:15]} Bf7 {[%emt 0:01:28]} 31. Rxc6 {[%emt 0:03:05]} Qf4 {[%emt 0:00:38]} 32. Re4 {[%emt 0:01:39]} Rxe4 {[%emt 0:01:02]} 33. Qxe4 {[%emt 0:00:10]} Qxg5 {[%emt 0:00:35]} 34. Qe3 {[%emt 0:01:59]} Qf5 {[%emt 0:00:15]} 35. Rc7 {[%emt 0:03:27]} Re8 {[%emt 0:00:15]} 36. Re7 {[%emt 0:00:06]} Rd8 {[%emt 0:00:34]} 37. Qf3 {[%emt 0:02:15]} Qxf3 {[%emt 0:00:55]} 38. Bxf3 {[%emt 0:00:09]} Rd3 {[%emt 0:00:28]} 39. Bb7 {[%emt 0:01:22]} Kf8 {[%emt 0:00:15]} 40. Rc7 {[%emt 0:01:35]} Rd1+ {[%emt 0:00:25]} 41. Kh2 {[%emt 0:30:50]} Rb1 {[%emt 0:08:08]} 42. Bxa6 {[%emt 0:00:00]} Rxb4 {[%emt 0:00:13]} 43. Bb7 {[%emt 0:00:00]} Ra4 {[%emt 0:02:14]} 44. Rxf7+ {[%emt 0:00:00]} Kxf7 {[%emt 0:00:11]} 45. c6 {[%emt 0:00:00]} Rxa5 {[%emt 0:14:58]} 46. c7 {[%emt 0:00:00]} Ra2 {[%emt 0:00:09]} 47. Bd5+ {[%emt 0:00:00]} Ke7 {[%emt 0:00:25]} 48. c8=Q {[%emt 0:00:00]} Rxf2+ {[%emt 0:00:15]} 49. Kg3 {[%emt 0:00:00]} Rf6 {[%emt 0:00:12]} 50. Qc7+ {[%emt 0:00:00]} Ke8 {[%emt 0:00:27]} 51. Bc6+ {[%emt 0:00:00]} Kf8 {[%emt 0:00:24]} 52. Qd8+ {[%emt 0:00:00]} Kf7 {[%emt 0:00:16]} 53. Qe8# {[%emt 0:00:00]} 1-0

[Event "44th Chess Olympiad Open 2022"]
[Site "Chennai"]
[Date "2022.08.09"]
[Round "11.69"]
[White "Mlawa, Hemed"]
[Black "Beukes, Dante M"]
[Result "0-1"]
[ECO "A45"]
[WhiteElo "1896"]
[BlackElo "2234"]
[Annotator "RC"]
[PlyCount "124"]
[EventDate "2022.07.29"]
[EventType "team-tourn"]
[EventCountry "IND"]
[SourceTitle "playchess.com"]
[Source "ChessBase"]
[SourceQuality "1"]
[WhiteTeam "Tanzania"]
[BlackTeam "Namibia"]
[WhiteTeamCountry "TAN"]
[BlackTeamCountry "NAM"]
[TimeControl "40/5400+30:1800+30"]

1. d4 {[%emt 0:00:08]} Nf6 {[%emt 0:00:05]} 2. Bf4 {[%emt 0:00:07]} d6 {[%emt 0:00:11]} 3. Nc3 {[%emt 0:00:19]} Nbd7 {[%emt 0:00:05]} 4. Nf3 {[%emt 0:02:41]} c5 {[%emt 0:00:10]} 5. e3 {[%emt 0:00:42]} Nh5 {[%emt 0:06:40]} 6. Bg3 {[%emt 0:00:22]} h6 {[%emt 0:00:08]} 7. Bh4 {[%emt 0:00:08]} g5 {[%emt 0:00:05]} 8. Nd2 {[%emt 0:00:53]} cxd4 {[%emt 0:01:13]} 9. exd4 {[%emt 0:01:09]} Ndf6 {[%emt 0:02:05]} 10. Bg3 {[%emt 0:01:49]} Nxg3 {[%emt 0:00:30]} 11. hxg3 {[%emt 0:00:30]} a6 {[%emt 0:00:30]} 12. Nce4 {[%emt 0:00:30]} Nxe4 {[%emt 0:00:30]} 13. Nxe4 {[%emt 0:00:30]} Bg7 {[%emt 0:04:16]} 14. c3 {[%emt 0:01:21]} Qa5 {[%emt 0:10:22]} 15. Bd3 {[%emt 0:12:41]} Qd5 {[%emt 0:03:09]} 16. Qf3 {[%emt 0:01:46]} Be6 {[%emt 0:02:29]} 17. Nd2 {[%emt 0:07:26]} Qxf3 {[%emt 0:02:11]} 18. gxf3 {[%emt 0:00:23]} Rc8 {[%emt 0:01:04]} 19. Be4 {[%emt 0:00:18]} Rc7 {[%emt 0:00:55]} 20. g4 {[%emt 0:02:07]} Rf8 {[%emt 0:04:37]} 21. a4 {[%emt 0:14:11]} f5 {[%emt 0:01:46]} 22. gxf5 {[%emt 0:02:02]} Bxf5 {[%emt 0:03:22]} 23. Bxf5 {[%emt 0:00:37]} Rxf5 {[%emt 0:00:16]} 24. Ke2 {[%emt 0:01:00]} Kf7 {[%emt 0:10:19]} 25. Ne4 {[%emt 0:00:58]} Kg6 {[%emt 0:00:42]} 26. Ng3 {[%emt 0:11:45]} Rf8 {[%emt 0:00:09]} 27. Nh5 {[%emt 0:00:16]} Bh8 {[%emt 0:00:24]} 28. Rh3 {[%emt 0:05:37]} e6 {[%emt 0:09:11]} 29. Rah1 {[%emt 0:02:06]} Rh7 {[%emt 0:00:33]} 30. Ng3 {[%emt 0:05:36]} d5 {[%emt 0:00:26]} 31. Nf1 {[%emt 0:01:39]} h5 {[%emt 0:11:07]} 32. Ne3 {[%emt 0:00:00]} Bg7 {[%emt 0:00:21]} 33. Kd3 {[%emt 0:01:34]} Rhh8 {[%emt 0:00:23]} 34. b3 {[%emt 0:00:56]} Rf4 {[%emt 0:02:02]} 35. Ng2 {[%emt 0:00:56]} Rf7 {[%emt 0:00:37]} 36. Rg1 {[%emt 0:01:50]} Rc8 {[%emt 0:11:20]} 37. Ne3 {[%emt 0:03:38]} Rcf8 {[%emt 0:02:24]} 38. Ke2 {[%emt 0:02:52]} Rd8 {[%emt 0:02:03]} 39. Rhg3 {[%emt 0:01:04]} Bh6 {[%emt 0:01:39]} 40. Kd3 {[%emt 0:01:03]} Rdf8 {[%emt 0:00:31]} 41. Ke2 {[%emt 0:30:29]} g4 {[%emt 0:34:48]} 42. fxg4 {[%emt 0:09:15]} Rxf2+ {[%emt 0:00:15]} 43. Ke1 {[%emt 0:01:55]} h4 {[%emt 0:03:17]} 44. Rh3 {[%emt 0:00:07]} R2f3 {[%emt 0:00:29]} 45. Rxf3 {[%emt 0:00:00]} Rxf3 {[%emt 0:00:00]} 46. Nd1 {[%emt 0:00:00]} Bf4 {[%emt 0:00:00]} 47. Ke2 {[%emt 0:00:00]} Rh3 {[%emt 0:00:00]} 48. Rg2 {[%emt 0:00:00]} Kg5 {[%emt 0:00:00]} 49. b4 {[%emt 0:00:31]} Rh1 {[%emt 0:00:00]} 50. Nf2 {[%emt 0:00:00]} h3 {[%emt 0:06:53]} 51. Rg1 {[%emt 0:00:00]} Rh2 {[%emt 0:00:00]} 52. Kf3 {[%emt 0:00:00]} Bd2 {[%emt 0:00:00]} 53. Rd1 {[%emt 0:00:00]} Bxc3 {[%emt 0:00:00]} 54. b5 {[%emt 0:00:00]} axb5 {[%emt 0:00:00]} 55. axb5 {[%emt 0:01:06]} Kh4 {[%emt 0:00:00]} 56. Ke2 {[%emt 0:00:00]} Rg2 {[%emt 0:00:00]} 57. Rd3 {[%emt 0:04:08]} Rg3 {[%emt 0:00:00]} 58. g5 {[%emt 0:00:27]} Rxd3 {[%emt 0:00:00]} 59. Kxd3 {[%emt 0:00:19]} Bb4 {[%emt 0:00:00]} 60. g6 {[%emt 0:00:42]} Bf8 {[%emt 0:00:00]} 61. Nh1 {[%emt 0:03:01]} Bg7 {[%emt 0:00:48]} 62. Ke3 {[%emt 0:00:40]} Kg4 {[%emt 0:00:00]} 0-1

[Event "44th Chess Olympiad Open 2022"]
[Site "Chennai"]
[Date "2022.08.09"]
[Round "11.69"]
[White "Mdoe, Yusuf"]
[Black "Khoa, Goodwill"]
[Result "1/2-1/2"]
[ECO "A22"]
[WhiteElo "1722"]
[BlackElo "1850"]
[Annotator "NA COMBH"]
[PlyCount "75"]
[EventDate "2022.07.29"]
[EventType "team-tourn"]
[EventCountry "IND"]
[SourceTitle "playchess.com"]
[Source "ChessBase"]
[SourceQuality "1"]
[WhiteTeam "Tanzania"]
[BlackTeam "Namibia"]
[WhiteTeamCountry "TAN"]
[BlackTeamCountry "NAM"]
[TimeControl "40/5400+30:1800+30"]

1. c4 {[%emt 0:00:06]} Nf6 {[%emt 0:00:14]} 2. Nc3 {[%emt 0:00:18]} e5 {[%emt 0:00:23]} 3. g3 {[%emt 0:00:15]} d5 {[%emt 0:00:52]} 4. cxd5 {[%emt 0:01:01]} Nxd5 {[%emt 0:00:18]} 5. Bg2 {[%emt 0:00:15]} c6 {[%emt 0:01:49]} 6. a3 {[%emt 0:02:59]} Be6 {[%emt 0:03:55]} 7. Qc2 {[%emt 0:00:56]} Bd6 {[%emt 0:02:07]} 8. Nf3 {[%emt 0:00:32]} Nd7 {[%emt 0:01:12]} 9. d4 {[%emt 0:02:25]} h6 {[%emt 0:02:06]} 10. e4 {[%emt 0:03:47]} Nxc3 {[%emt 0:00:58]} 11. bxc3 {[%emt 0:03:09]} O-O {[%emt 0:02:57]} 12. O-O {[%emt 0:00:00]} Qf6 {[%emt 0:00:29]} 13. Bb2 {[%emt 0:02:37]} b5 {[%emt 0:05:11]} 14. dxe5 {[%emt 0:03:53]} Nxe5 {[%emt 0:00:44]} 15. Nxe5 {[%emt 0:00:10]} Qxe5 {[%emt 0:02:29]} 16. Bc1 {[%emt 0:11:48]} Bc5 {[%emt 0:08:13]} 17. Bf4 {[%emt 0:04:17]} Qh5 {[%emt 0:05:18]} 18. Rfe1 {[%emt 0:00:00]} Rfd8 {[%emt 0:02:36]} 19. Be3 {[%emt 0:03:58]} Rd7 {[%emt 0:02:37]} 20. e5 {[%emt 0:04:05]} Bxe3 {[%emt 0:00:50]} 21. Rxe3 {[%emt 0:12:59]} Rad8 {[%emt 0:10:58]} 22. Bxc6 {[%emt 0:04:02]} Rd1+ {[%emt 0:00:18]} 23. Re1 {[%emt 0:00:54]} Rxa1 {[%emt 0:00:29]} 24. Rxa1 {[%emt 0:00:37]} Qxe5 {[%emt 0:00:13]} 25. Bg2 {[%emt 0:03:35]} Rc8 {[%emt 0:01:42]} 26. Rc1 {[%emt 0:00:36]} a5 {[%emt 0:00:25]} 27. Qd2 {[%emt 0:01:44]} Qc5 {[%emt 0:00:46]} 28. Qb2 {[%emt 0:07:15]} Bc4 {[%emt 0:08:21]} 29. Re1 {[%emt 0:00:00]} g6 {[%emt 0:08:11]} 30. h4 {[%emt 0:00:43]} Rd8 {[%emt 0:07:41]} 31. Kh2 {[%emt 0:06:53]} Kg7 {[%emt 0:01:29]} 32. Be4 {[%emt 0:05:09]} Re8 {[%emt 0:00:47]} 33. Qd2 {[%emt 0:04:58]} f5 {[%emt 0:03:40]} 34. Bg2 {[%emt 0:00:00]} Rxe1 {[%emt 0:02:27]} 35. Qxe1 {[%emt 0:00:00]} Kf6 {[%emt 0:01:37]} 36. Qd2 {[%emt 0:00:00]} Qxa3 {[%emt 0:03:41]} 37. Qd8+ {[%emt 0:00:00]} Kg7 {[%emt 0:00:35]} 38. Qc7+ {[%emt 0:00:25]} 1/2-1/2

[Event "44th Chess Olympiad Open 2022"]
[Site "Chennai"]
[Date "2022.08.09"]
[Round "11.70"]
[White "Blackman, Justin"]
[Black "Amba Oyon Marius Claude"]
[Result "1-0"]
[ECO "A57"]
[WhiteElo "2195"]
[BlackElo "1938"]
[Annotator "RC"]
[PlyCount "105"]
[EventDate "2022.07.29"]
[EventType "team-tourn"]
[EventCountry "IND"]
[SourceTitle "playchess.com"]
[Source "ChessBase"]
[SourceQuality "1"]
[WhiteTeam "Barbados"]
[BlackTeam "CMR"]
[WhiteTeamCountry "BAR"]
[TimeControl "40/5400+30:1800+30"]

1. d4 {[%emt 0:00:03]} Nf6 {[%emt 0:00:34]} 2. c4 {[%emt 0:00:06]} c5 {[%emt 0:01:22]} 3. d5 {[%emt 0:00:04]} b5 {[%emt 0:02:04]} 4. Nd2 {[%emt 0:00:06]} g6 {[%emt 0:01:06]} 5. b3 {[%emt 0:00:08]} d6 {[%emt 0:01:20]} 6. e4 {[%emt 0:00:07]} Bg7 {[%emt 0:00:32]} 7. Bb2 {[%emt 0:01:30]} O-O {[%emt 0:01:29]} 8. cxb5 {[%emt 0:00:34]} a6 {[%emt 0:00:20]} 9. bxa6 {[%emt 0:00:14]} Qa5 {[%emt 0:00:40]} 10. Qc2 {[%emt 0:03:10]} Nxa6 {[%emt 0:08:03]} 11. Bxa6 {[%emt 0:09:47]} Bxa6 {[%emt 0:03:14]} 12. Bc3 {[%emt 0:00:12]} Qb5 {[%emt 0:01:10]} 13. Nc4 {[%emt 0:06:16]} Rfb8 {[%emt 0:00:53]} 14. Nf3 {[%emt 0:05:44]} Nd7 {[%emt 0:04:41]} 15. Bxg7 {[%emt 0:06:40]} Kxg7 {[%emt 0:00:19]} 16. O-O {[%emt 0:00:07]} Nb6 {[%emt 0:03:26]} 17. Nfd2 {[%emt 0:05:56]} Nxc4 {[%emt 0:03:39]} 18. Nxc4 {[%emt 0:04:14]} Qb4 {[%emt 0:00:57]} 19. Rfc1 {[%emt 0:10:57]} Bxc4 {[%emt 0:01:25]} 20. Qxc4 {[%emt 0:08:33]} Qxc4 {[%emt 0:00:15]} 21. bxc4 {[%emt 0:00:05]} Rb2 {[%emt 0:01:14]} 22. a4 {[%emt 0:00:15]} Ra5 {[%emt 0:04:48]} 23. Ra3 {[%emt 0:04:20]} Rb4 {[%emt 0:00:00]} 24. g3 {[%emt 0:01:01]} g5 {[%emt 0:00:00]} 25. Kg2 {[%emt 0:09:28]} Raxa4 {[%emt 0:00:00]} 26. Rxa4 {[%emt 0:00:42]} Rxa4 {[%emt 0:00:00]} 27. Rc2 {[%emt 0:05:44]} g4 {[%emt 0:00:00]} 28. h3 {[%emt 0:03:04]} h5 {[%emt 0:00:00]} 29. f3 {[%emt 0:05:35]} gxf3+ {[%emt 0:04:36]} 30. Kxf3 {[%emt 0:00:08]} Ra3+ {[%emt 0:00:14]} 31. Kf4 {[%emt 0:02:11]} Kf6 {[%emt 0:00:16]} 32. Rc1 {[%emt 0:02:40]} h4 {[%emt 0:04:27]} 33. gxh4 {[%emt 0:00:23]} Rxh3 {[%emt 0:00:35]} 34. Kg4 {[%emt 0:02:13]} Re3 {[%emt 0:00:30]} 35. Kf4 {[%emt 0:00:41]} Re2 {[%emt 0:03:35]} 36. Kf3 {[%emt 0:02:09]} Ra2 {[%emt 0:02:08]} 37. Kf4 {[%emt 0:00:41]} Rd2 {[%emt 0:06:02]} 38. Ke3 {[%emt 0:01:19]} Rh2 {[%emt 0:00:19]} 39. Rf1+ {[%emt 0:00:05]} Kg6 {[%emt 0:00:38]} 40. Rg1+ {[%emt 0:00:57]} Kh6 {[%emt 0:01:31]} 41. Rg4 {[%emt 0:31:11]} Rh3+ {[%emt 0:31:52]} 42. Kd2 {[%emt 0:01:29]} Rf3 {[%emt 0:00:21]} 43. Rg8 {[%emt 0:00:20]} Rf6 {[%emt 0:04:55]} 44. Re8 {[%emt 0:00:00]} e5 {[%emt 0:00:00]} 45. dxe6 {[%emt 0:00:00]} Rxe6 {[%emt 0:00:00]} 46. Rxe6+ {[%emt 0:00:00]} fxe6 {[%emt 0:00:00]} 47. e5 {[%emt 0:00:00]} dxe5 {[%emt 0:00:00]} 48. Ke3 {[%emt 0:00:00]} Kh5 {[%emt 0:04:20]} 49. Ke4 {[%emt 0:00:20]} Kxh4 {[%emt 0:00:00]} 50. Kxe5 {[%emt 0:00:00]} Kg5 {[%emt 0:00:00]} 51. Kxe6 {[%emt 0:00:00]} Kg6 {[%emt 0:00:00]} 52. Kd5 {[%emt 0:00:00]} Kf6 {[%emt 0:00:00]} 53. Kxc5 {[%emt 0:00:00]} 1-0

[Event "44th Chess Olympiad Open 2022"]
[Site "Chennai"]
[Date "2022.08.09"]
[Round "11.70"]
[White "Zebaze Dongmo Loic Dylane"]
[Black "Edwards, Emar"]
[Result "0-1"]
[ECO "D02"]
[WhiteElo "1837"]
[BlackElo "1695"]
[Annotator "NA COMBH"]
[PlyCount "94"]
[EventDate "2022.07.29"]
[EventType "team-tourn"]
[EventCountry "IND"]
[SourceTitle "playchess.com"]
[Source "ChessBase"]
[SourceQuality "1"]
[WhiteTeam "CMR"]
[BlackTeam "Barbados"]
[BlackTeamCountry "BAR"]
[TimeControl "40/5400+30:1800+30"]

1. d4 {[%emt 0:00:04]} d5 {[%emt 0:00:06]} 2. Bf4 {[%emt 0:00:06]} e6 {[%emt 0:00:25]} 3. e3 {[%emt 0:00:06]} Bd6 {[%emt 0:00:07]} 4. Bg3 {[%emt 0:00:23]} Nf6 {[%emt 0:00:05]} 5. Nd2 {[%emt 0:00:09]} O-O {[%emt 0:00:55]} 6. Ngf3 {[%emt 0:00:30]} b6 {[%emt 0:00:54]} 7. Bd3 {[%emt 0:01:27]} c5 {[%emt 0:02:09]} 8. c3 {[%emt 0:00:35]} Ba6 {[%emt 0:01:22]} 9. Bxa6 {[%emt 0:01:39]} Nxa6 {[%emt 0:00:06]} 10. O-O {[%emt 0:00:15]} Bxg3 {[%emt 0:00:46]} 11. hxg3 {[%emt 0:00:10]} Qd6 {[%emt 0:08:11]} 12. Qe2 {[%emt 0:02:45]} Nb8 {[%emt 0:01:24]} 13. e4 {[%emt 0:01:16]} dxe4 {[%emt 0:00:17]} 14. Nxe4 {[%emt 0:00:08]} Nxe4 {[%emt 0:00:44]} 15. Qxe4 {[%emt 0:00:10]} Qd5 {[%emt 0:00:19]} 16. Qxd5 {[%emt 0:01:19]} exd5 {[%emt 0:00:06]} 17. Rfe1 {[%emt 0:00:23]} Nc6 {[%emt 0:00:29]} 18. Ne5 {[%emt 0:00:23]} Nxe5 {[%emt 0:05:48]} 19. Rxe5 {[%emt 0:00:11]} cxd4 {[%emt 0:00:09]} 20. cxd4 {[%emt 0:00:16]} Rfd8 {[%emt 0:00:35]} 21. Rc1 {[%emt 0:00:07]} Rd7 {[%emt 0:00:34]} 22. Kf1 {[%emt 0:06:55]} Kf8 {[%emt 0:00:18]} 23. Ke2 {[%emt 0:03:03]} Re8 {[%emt 0:03:10]} 24. Kd3 {[%emt 0:00:23]} f6 {[%emt 0:01:19]} 25. Rxe8+ {[%emt 0:01:51]} Kxe8 {[%emt 0:00:02]} 26. Rc8+ {[%emt 0:00:14]} Rd8 {[%emt 0:01:56]} 27. Rc3 {[%emt 0:03:01]} Ke7 {[%emt 0:00:29]} 28. Kc2 {[%emt 0:00:18]} Kd6 {[%emt 0:05:53]} 29. b4 {[%emt 0:03:54]} Rd7 {[%emt 0:02:19]} 30. Kb3 {[%emt 0:11:21]} Rc7 {[%emt 0:00:39]} 31. Re3 {[%emt 0:00:19]} Re7 {[%emt 0:00:18]} 32. Rxe7 {[%emt 0:03:05]} Kxe7 {[%emt 0:00:01]} 33. b5 {[%emt 0:00:08]} f5 {[%emt 0:01:53]} 34. a4 {[%emt 0:00:24]} Kf6 {[%emt 0:00:17]} 35. Kc3 {[%emt 0:01:33]} Kg5 {[%emt 0:01:26]} 36. Kd3 {[%emt 0:00:08]} Kg4 {[%emt 0:06:04]} 37. a5 {[%emt 0:11:25]} g5 {[%emt 0:03:07]} 38. a6 {[%emt 0:00:28]} f4 {[%emt 0:01:53]} 39. gxf4 {[%emt 0:08:42]} Kxf4 {[%emt 0:00:15]} 40. Ke2 {[%emt 0:02:44]} Ke4 {[%emt 0:00:20]} 41. g3 {[%emt 0:36:17]} g4 {[%emt 0:33:13]} 42. Kd1 {[%emt 0:11:09]} Kxd4 {[%emt 0:01:00]} 43. Kd2 {[%emt 0:00:18]} Ke4 {[%emt 0:00:14]} 44. Kc3 {[%emt 0:00:15]} d4+ {[%emt 0:00:21]} 45. Kd2 {[%emt 0:04:54]} d3 {[%emt 0:02:00]} 46. Kc3 {[%emt 0:00:10]} h6 {[%emt 0:00:16]} 47. Kd2 {[%emt 0:00:12]} Kd4 {[%emt 0:00:06]} 0-1